Cogmind - Beta 13 @@@ ROGUE MODE // 2024.03.31 @ 16:16:34 Player: Snaylor Result: Destroyed by Y-45 Defender with Heavy Assault Rifle Performance ------------- Evolutions (1) 500 Regions Visited (4) 800 Robots Destroyed (19) 95 Value Destroyed (507) 507 Prototype IDs (0) 0 Alien Tech Used (0) 0 Bonus (-29) -29 TOTAL SCORE: 1873 Bonus ------- Friendly Fire -29 Cogmind --------- Core Integrity 0/400 Matter 236/300 Energy 285/300 System Corruption 0% Temperature Cool (9) Movement Core (100) Ox1 Location -9/Storage Parts ------- > --- POWER (2) -------- (None) > --- PROPULSION (2) --- (None) > --- UTILITY (3) ------ Large Battery Signal Interpreter > --- WEAPON (2) ------- Heavy Assault Rifle > --- INVENTORY (5) ---- Heat Sink Peak State ------------ > --- POWER ------------ Ion Engine Light Ion Engine > --- PROPULSION ------- Light Treads Improved Treads > --- UTILITY ---------- Structural Scanner Sensor Array Signal Interpreter > --- WEAPON ----------- Heavy Assault Rifle Mining Claw > --- INVENTORY -------- Heat Sink Large Battery [Rating: 11] Favorites ----------- Power Ion Engine Engine Ion Engine Propulsion Light Treads Treads Light Treads Leg Aluminum Leg Wheel Wheel Utility Sensor Array Device Sensor Array Storage Large Battery Processor Transport Network Coupler Weapon Grenade Launcher Energy Gun Heavy EM Pulse Gun Ballistic Gun Heavy Assault Rifle Launcher Grenade Launcher Slashing Weapon Mining Claw Build | -11 -10 -10 -9 -9 ------- Run | Yrd Mat Min Mat Sto Slots Evolved 2 | . . . 2 . Power 1 | . . . 1 . Propulsion . | . . . . . Utility 1 | . . . 1 . Weapon . | . . . . . Parts Attached 35 | 7 3 12 7 6 Power 6 | 2 . 1 2 1 Engine 6 | 2 . 1 2 1 Core . | . . . . . Reactor . | . . . . . Propulsion 8 | 2 . 4 1 1 Treads 4 | . . 2 1 1 Leg 2 | . . 2 . . Wheel 2 | 2 . . . . Hover . | . . . . . Flight . | . . . . . Utility 7 | 1 1 2 2 1 Device 4 | 1 1 1 1 . Storage 1 | . . . . 1 Processor 2 | . . 1 1 . Hackware . | . . . . . Protection . | . . . . . Artifact . | . . . . . Weapon 14 | 2 2 5 2 3 Energy Gun 2 | 1 . . . 1 Energy Cannon . | . . . . . Ballistic Gun 6 | 1 . 2 1 2 Ballistic Cannon . | . . . . . Launcher 4 | . 1 3 . . Special Weapon . | . . . . . Impact Weapon . | . . . . . Slashing Weapon 2 | . 1 . 1 . Piercing Weapon . | . . . . . Special Melee Weapon . | . . . . . Unidentified Prototypes . | . . . . . Parts Lost 12 | . . . 2 10 Power 3 | . . . 1 2 Propulsion 3 | . . . . 3 Utility 2 | . . . . 2 Weapon 4 | . . . 1 3 Highest Loss Streak 10 | . . . 1 10 To Critical Strikes . | . . . . . Average Slot Usage (%) 94 | . 86 99 93 89 Engine 15 | . 14 14 16 18 Treads 14 | . . 16 22 19 Leg 4 | . . 11 . . Wheel 6 | . 28 . . . Device 18 | . 15 18 22 19 Processor 7 | . . 9 11 11 Energy Gun 1 | . 3 . . 8 Ballistic Gun 11 | . 14 13 11 1 Launcher 8 | . 8 13 5 . Slashing Weapon 3 | . 1 . 5 10 Naked Turns . | . . . . . Heaviest Build 18 | 10 12 14 18 15 Greatest Support 43 | 20 20 40 43 43 Greatest Overweight (x) 3 | . . 3 . . Average Overweight (x) . | . . . . . Largest Inventory Capacity 5 | 5 5 5 5 5 Average Capacity 5 | 5 5 5 5 5 Most Carried 5 | 5 5 5 4 5 Average Carried 3 | 2 4 4 2 3 Final Capacity 5 | 5 5 5 5 5 Final Carried 5 | 5 5 4 3 1 Class Distribution -------------------- 42% | Mutant 38% | Scavenger-Mutant 18% | Scavenger-Assassin Dominant Class ---------------- Mutant | -10/Materials Scavenger-Mutant | -10/Mines Scavenger-Mutant | -9/Materials Scavenger-Assassin | -9/Storage Resources | -11 -10 -10 -9 -9 ----------- Run | Yrd Mat Min Mat Sto Matter Collected 740 | 276 49 255 160 . Remotely . | . . . . . Salvage Created 528 | 44 72 22 352 38 Parts 33 | 3 6 1 20 3 Haulers Intercepted . | . . . . . Recyclers Shooed 1 | . . . 1 . Parts Field Recycled . | . . . . . Retrieved Matter . | . . . . . Parts Self-Destructed . | . . . . . Prevented . | . . . . . Kills | -11 -10 -10 -9 -9 ------- Run | Yrd Mat Min Mat Sto Combat Hostiles Destroyed 13 | 1 2 4 5 1 Melee 1 | . . . 1 . Guns 7 | 1 2 . 3 1 AOE 5 | . . 4 1 . Classes Destroyed 7 | 1 . 1 5 . Builder 1 | . . . 1 . Tunneler 1 | . . . 1 . Recycler 2 | . . . 2 . Watcher 2 | . . . 2 . Swarmer 2 | . . 2 . . Grunt 10 | 1 2 2 4 1 Sentry 1 | . . . 1 . Best Kill Streak 8 | 1 1 2 8 1 Combat Bots Only 2 | 1 1 2 2 1 Max Kills in Single Turn 2 | 1 1 2 2 1 Gunslinging . | . . . . . Exploded 2 | . . 2 1 . Melee 1 | . . . 1 . Uniques/NPCs Destroyed . | . . . . . Combat | -11 -10 -10 -9 -9 -------- Run | Yrd Mat Min Mat Sto Hostile Shots Fired 175 | 2 23 18 34 98 Missed 44 | . 9 4 11 20 Damage Taken 1695 | 23 137 249 306 980 Core 461 | . 39 17 62 343 Absorbed by Shields . | . . . . . Regen/Repaired (Parts) 7 | . . . . 7 Core Remaining (%) 88 | 100 . 77 . . Volleys Fired 59 | 2 13 9 20 15 Largest 2 | 2 2 2 2 1 Hottest 70 | 70 70 63 53 45 Shots Fired 88 | 4 26 17 26 15 Gun 70 | 4 26 5 20 15 Cannon . | . . . . . Launcher 18 | . . 12 6 . Special . | . . . . . Kinetic 43 | 2 13 5 20 3 Thermal 15 | 2 13 . . . Explosive 18 | . . 12 6 . Electromagnetic 12 | . . . . 12 Robot Hit Streak 4 | 1 4 2 4 4 Robot Miss Streak 8 | 1 2 6 8 3 Penetration Max . | . . . . . Secondary Targets . | . . . . . Shots Hit Robots 38 | 2 13 2 12 9 Core Hits 34 | 2 4 8 18 2 Critical Kills . | . . . . . Critical Parts Destroyed 1 | . 1 . . . Critical Strikes 1 | . 1 . . . Destroy 1 | . 1 . . . Melee Attacks 11 | . . 1 4 6 Impact . | . . . . . Slashing 11 | . . 1 4 6 Piercing . | . . . . . Sneak Attacks . | . . . . . Combat Hostiles . | . . . . . Follow-up Attacks . | . . . . . Damage Inflicted 1430 | 20 161 455 641 153 Guns 460 | 20 161 . 171 108 Cannons . | . . . . . Explosions 900 | . . 455 445 . Melee 70 | . . . 25 45 Ramming . | . . . . . Kinetic 308 | 20 85 . 171 32 Thermal 76 | . 76 . . . Explosive 900 | . . 455 445 . Electromagnetic 76 | . . . . 76 Impact . | . . . . . Slashing 70 | . . . 25 45 Piercing . | . . . . . Highest Corruption . | . . . . . Average Corruption . | . . . . . Corruption Purged . | . . . . . Corruption Blocked . | . . . . . Overload Shots . | . . . . . Overflow Damage 32 | . . 23 9 . Projectiles . | . . . . . Explosions 32 | . . 23 9 . Melee . | . . . . . Knockbacks . | . . . . . Impact . | . . . . . Kinetic . | . . . . . Secondary . | . . . . . Self-Inflicted Damage 73 | . . 73 . . Shots 3 | . . 3 . . Rammed . | . . . . . Targets Rammed . | . . . . . Kicked . | . . . . . Crushed . | . . . . . Highest Temperature 75 | 30 16 75 21 75 Average Temperature 31 | 19 10 47 15 32 Received Heat Transfer 777 | 12 48 99 138 480 Siege Activations . | . . . . . Robots Corrupted . | . . . . . Combat Hostiles . | . . . . . Parts Fried . | . . . . . Impact Corruptions . | . . . . . Robots Melted . | . . . . . Combat Hostiles . | . . . . . Parts Melted . | . . . . . Heat Transferred 222 | . 222 . . . Parts Sabotaged . | . . . . . Parts Stolen . | . . . . . Parts Stripped . | . . . . . Power Chain Reactions . | . . . . . Alert | -11 -10 -10 -9 -9 ------- Run | Yrd Mat Min Mat Sto Peak Influence 243 | 20 113 131 243 74 Initial 24 | . 13 5 . 24 Average 75 | 5 88 66 111 46 Maximum Alert Level 1 | . . . 1 . Low Security (%) 95 | 100 100 100 80 100 Level 1 4 | . . . 19 . Level 2 . | . . . . . Level 3 . | . . . . . Level 4 . | . . . . . Level 5 . | . . . . . High Security . | . . . . . Max Security . | . . . . . Squads Dispatched 4 | . 1 . 2 1 Investigation 3 | . 1 . 1 1 Extermination . | . . . . . Reinforcement 1 | . . . 1 . Assault . | . . . . . Garrison . | . . . . . Intercept . | . . . . . Searches Triggered . | . . . . . Construction Impeded . | . . . . . Haulers Reinforced . | . . . . . Active Scanning Responses . | . . . . . Cargo Convoy Interrupts . | . . . . . Stealth | -11 -10 -10 -9 -9 --------- Run | Yrd Mat Min Mat Sto Distress Signals 3 | . 1 1 1 . Communications Jammed . | . . . . . Distress Signals . | . . . . . Times Spotted 33 | 1 10 5 12 5 Peak Tracking Total 6 | 1 3 3 6 4 Tactical Retreats 3 | . 1 1 . 1 Traps | -11 -10 -10 -9 -9 ------- Run | Yrd Mat Min Mat Sto Traps Triggered . | . . . . . Indirectly . | . . . . . Trap Hack Attempts . | . . . . . Triggered . | . . . . . Disarmed . | . . . . . Reprogrammed . | . . . . . Reused . | . . . . . Traps Extracted . | . . . . . Installed . | . . . . . Triggered . | . . . . . Machines | -11 -10 -10 -9 -9 ---------- Run | Yrd Mat Min Mat Sto Machines Disabled 3 | . . 2 . 1 Max in Single Turn 1 | . . 1 . 1 Machines Repaired . | . . . . . Machines Dismantled . | . . . . . Machines Sabotaged . | . . . . . Overloaded Fab Kills . | . . . . . Hacking | -11 -10 -10 -9 -9 --------- Run | Yrd Mat Min Mat Sto Machines Accessed 7 | . 3 . 2 2 Terminals 3 | . 2 . 1 . Fabricators . | . . . . . Repair Stations 1 | . . . . 1 Recycling Units 2 | . 1 . . 1 Scanalyzers 1 | . . . 1 . Garrison Access . | . . . . . Total Hacks 21 | . 11 . 4 6 Successful 16 | . 9 . 2 5 Failed 5 | . 2 . 2 1 Catastrophic 1 | . 1 . . . Database Lockouts . | . . . . . Manual . | . . . . . Terminals 9 | . 8 . 1 . Fabricators . | . . . . . Repair Stations 3 | . . . . 3 Recycling Units 6 | . 3 . . 3 Scanalyzers 3 | . . . 3 . Garrison Access . | . . . . . Terminal Hacks 6 | . 6 . . . Record 1 | . 1 . . . Alert Level 3 | . 3 . . . Dispatch Records 1 | . 1 . . . Zone Layout 1 | . 1 . . . Fabricator Hacks . | . . . . . Repair Station Hacks 2 | . . . . 2 Scan Component 1 | . . . . 1 Repair 1 | . . . . 1 Recycling Unit Hacks 6 | . 3 . . 3 Recycle Component 2 | . 1 . . 1 Process 2 | . 1 . . 1 Report Inventory 1 | . . . . 1 Retrieve Matter 1 | . 1 . . . Scanalyzer 2 | . . . 2 . Insert Component 1 | . . . 1 . Analyze 1 | . . . 1 . Garrison Access Hacks . | . . . . . Unauthorized Hacks . | . . . . . Terminals . | . . . . . Fabricators . | . . . . . Repair Stations . | . . . . . Recycling Units . | . . . . . Scanalyzers . | . . . . . Garrison Access . | . . . . . Data Cores Recovered . | . . . . . Used . | . . . . . Hacking Detections 7 | . 3 . 2 2 Full Trace Events 5 | . 2 . 1 2 Feedback Events . | . . . . . Feedback Blocked . | . . . . . Robot Schematics Acquired . | . . . . . Robots Built . | . . . . . Authchips . | . . . . . Time . | . . . . . Total Robot Build Rating . | . . . . . Part Schematics Acquired 1 | . . . 1 . Parts Built . | . . . . . Authchips . | . . . . . Time . | . . . . . Total Part Build Rating . | . . . . . Parts Repaired 1 | . . . . 1 Time 36 | . . . . 36 Parts Recycled 2 | . 1 . . 1 Recycled Matter 159 | . 154 . . 5 Retrieved Matter 154 | . 154 . . . Retrieved Components . | . . . . . Parts Scanalyzed 1 | . . . 1 . Part Schematics Acquired 1 | . . . 1 . Parts Damaged . | . . . . . Bothacking | -11 -10 -10 -9 -9 ------------ Run | Yrd Mat Min Mat Sto Used RIF Installer . | . . . . . Robots Hacked . | . . . . . Non-combat . | . . . . . Combat . | . . . . . Robot Hacks Applied . | . . . . . Relay Couplers Released . | . . . . . Fabnet Peak Effective % . | . . . . . Robots Rewired . | . . . . . Allies Hacked . | . . . . . Hacks Repelled . | . . . . . Allies | -11 -10 -10 -9 -9 -------- Run | Yrd Mat Min Mat Sto Total Allies . | . . . . . Largest Group . | . . . . . Highest-Rated Group . | . . . . . Highest-Rated Ally . | . . . . . Total Orders . | . . . . . Ally Attacks . | . . . . . Total Damage . | . . . . . Kills . | . . . . . Allies Corrupted . | . . . . . Allies Melted . | . . . . . Intel | -11 -10 -10 -9 -9 ------- Run | Yrd Mat Min Mat Sto Robot Analysis Total . | . . . . . Derelict Logs Recovered 1 | . . 1 . . Drone Launches . | . . . . . Drone Recoveries . | . . . . . Exploration | -11 -10 -10 -9 -9 ------------- Run | Yrd Mat Min Mat Sto Turns Passed 1975 | 87 407 804 426 251 Spaces Moved 1253 | 87 338 521 210 97 Core 29 | 23 . 1 . 5 Treads 589 | . . 287 210 92 Legs 233 | . . 233 . . Wheels 402 | 64 338 . . . Hover . | . . . . . Flight . | . . . . . Fastest Speed 50 | 50 80 120 160 50 Average Speed 124 | 72 80 142 160 154 Slowest Speed 200 | 80 80 200 160 160 Overloaded Moves . | . . . . . Propulsion Burnouts . | . . . . . Robots Hopped . | . . . . . Cave-ins Triggered . | . . . . . Exploration Rate (%) 31 | 9 33 83 16 17 Regions Visited 4 Branch Regions 2 Pre-discovered Areas . | . . . . . Known Exits Taken 1 | . . . 1 . Unknown Exits Taken 3 | 1 1 1 . . Scrap Searched 2 | . . 2 . . Spaces Dug 2 | . . 1 1 . Terrain Destroyed 143 | . . 111 32 . Melee 2 | . . 1 1 . Projectile . | . . . . . AOE 141 | . . 110 31 . Terrain Rammed . | . . . . . Walls Destroyed . | . . . . . Machines Disabled . | . . . . . Actions | -11 -10 -10 -9 -9 --------- Run | Yrd Mat Min Mat Sto Total 1558 | 106 449 565 268 170 Wait 156 | . 86 9 19 42 Move 1249 | 86 337 520 209 97 Hop . | . . . . . Pick Up 32 | 11 6 5 6 4 Fast Attach 3 | . . 3 . . Attach 19 | 6 2 . 7 4 Detach 1 | . . . 1 . Swap 13 | 1 1 9 . 2 Drop 15 | . 4 9 2 . Fire 59 | 2 13 9 20 15 Melee 11 | . . 1 4 6 Ram . | . . . . . Kick . | . . . . . Crush . | . . . . . Escape Stasis . | . . . . . Rewire . | . . . . . Trap . | . . . . . Miscellaneous . | . . . . . Route ------- -11/Scrapyard -10/Materials (discovered 2 exits: [*Min x2]) -10/Mines (discovered 3 exits: *Mat x2 / [*Sub]) -9/Materials -9/Storage History --------- Turn | Location | Event 2 | -11/Scrapyard | Met Revision 17 59 | -11/Scrapyard | Discovered new exit (range 8) 88 | -11/Scrapyard | Entered Materials 313 | -10/Materials | Build established: Mutant 450 | -10/Materials | Discovered new exit (range 6) 474 | -10/Materials | Discovered new exit (range 16) 495 | -10/Materials | Entered Mines 511 | -10/Mines | Assembled infested the area 540 | -10/Mines | Discovered new exit (range 10) 540 | -10/Mines | Discovered new exit (range 13) 542 | -10/Mines | Met 8R-AWN 553 | -10/Mines | YI-UF0 nonchalantly dropped a Grenade Launcher on the ground 605 | -10/Mines | Discovered new exit (range 6) 612 | -10/Mines | Received a Rocket Launcher from a helpful Derelict 794 | -10/Mines | Joined a pair of Derelicts in attacking an 0b10 outpost 1051 | -10/Mines | Learned Materials emergency access door positions 1115 | -10/Mines | Build established: Scavenger-Mutant 1299 | -10/Mines | Entered Materials 1299 | -9/Materials | Evolved 2 slots: Power x1, Utility x1 1331 | -9/Materials | Discovered new exit (range 11) 1724 | -9/Materials | Identified exit to Storage 1725 | -9/Materials | Entered Storage 1852 | -9/Storage | Repaired Corrupted Ion Engine 1874 | -9/Storage | Build established: Scavenger-Assassin 1952 | -9/Storage | Core integrity fell below 50% 1965 | -9/Storage | Core integrity fell below 20% 1976 | -9/Storage | Destroyed by Y-45 Defender with Heavy Assault Rifle Last Messages --------------- Lgt. Ion Engine destroyed. K-01 Serf collects debris. Lgt. Treads destroyed. K-01 Serf cleans the Storage Shell. Door malfunctions. Hvy. EM Pulse Gun destroyed. Critical hit (Burn: +37). U-05 Engineer repairs door. Ion Engine destroyed. Imp. Treads destroyed. Structural Scanner destroyed. U-05 Engineer builds a Door. Mining Claw destroyed. Sensor Array destroyed. U-05 Engineer builds a Door. Hvy. Assault Rifle destroyed. Lgt. Treads destroyed. R-06 Scavenger collects Corrupted Aluminum Leg. Acquired Hvy. Assault Rifle. [Achievement: First Step to Greatness] Map ----- +----------------------------------------------------+ | ????????????????????????????????? | | ????????????????????????????????? | | ????????????????????????????????? | | ???????????????? ???????????????? | | ???????????????# ??? "??????????? | | ??????????????## ??? """????????? | | ?????????????? # ??? ""?????????? | | ?????????????? + ??? ?????????? | | ?????????????? # ??? ??????????? | | ??????????????## #######? | | ??????????????##+###/############ | | ??????????????## + ## | | ??????????????## # # | | ??????????????## # #? | | ??????????????## # #? | | ??????????????## + ??? | | ??????????????## # """" ## | | ????????????? ## # """" ## | | ????????????" ## # """" ## | | ????????????" + # """" =## | | ????????????" ##### ##+######## | | ????????????? ##### # ^ # | | ??????????????##### # """ """ # | | ??????????????##### # "Y" """ # | | ??????????????##""" g# """ # | | ??????????????##"R rY !@[ # | | ??????????????##""" # ![ # | | ???????############ =%# ![ # | | ???????############ # # | | ???????## # ########### | | ???????## # ########### | | ???????## # # # | | ???????## """"" + + # | | ???????## """ # # # | | ???????## """"" # # # | | ???????## # + # | | ???????## ! # # # | | ???????############ # # | | ???????############ # # | | ?????????????????## ########### | | ?????????????????## ########### | | ?????????????????#######????????? | | ?????????????????#######????????? | | ????????????????????????????????? | | ????????????????????????????????? | | ????????????????????????????????? | | ????????????????????????????????? | | | | | | | +----------------------------------------------------+ Best States ------------- Heat Dissipation 35 Energy Generation 15 Energy Capacity 400 Matter Stores 300 Matter Capacity 300 Sight Range 16 Robot Scan Range 14 Terrain Scan Density 10 Evasion (%) 55 Recoil Reduction 2 Item Schematics ----------------- Heat Sink | -9/Materials | Scanalyzed Robot Schematics ------------------ None Fabricated ------------ Nothing Alien Tech Used ----------------- None Achievements -------------- First Step to Greatness One Hack Too Far Part-time Mechanic Storm Trooper Uninvited Guest Challenges ------------ None Game ------ Seed FlightCoolingAccelerator Manual? 0 Play Time 00:54:00 Cumulative 0.8 hours Start 2024.03.31 @ 15:15:26 End 2024.03.31 @ 16:16:34 Sessions 1 Manual Loads 0 Difficulty Rogue Special Mode None Game No. 1 Rogue 1 Adventurer 0 Explorer 0 Win Type - Total 0 Types 0/0/0/0/0/0/0/0/0 Lore% 0 Gallery% 2 Achievement% 1 Wizard Run 0 Options --------- Layout 1 ASCII 0 Keyboard 0 Movement Arrows Keybinds 0 Fullscreen 1 Font 24/Smallcaps Map View 50x35 Zoom Use 0% Tactical HUD 0 Map Filters NONE Filters NONE Steam 1 RUN: 97f02e4d-f0fb-4d94-9c76-b0fd8d81cc21